fUSD/lending_fUSD_20240615
["ID","MTS","AMOUNT","RATE_DAILY","PERIOD"]
[329586026,1718461908624,-151.0,0.0002388,7]
[329586027,1718461908641,-151.0,0.0002388,7]
[329586028,1718461908658,-151.0,0.0002388,7]
[329586029,1718461908672,-151.0,0.0002388,7]
[329586030,1718461908687,-151.0,0.0002388,7]
[329586031,1718461908700,-151.0,0.0002388,7]
[329586032,1718461908712,-151.0,0.0002388,7]
[329586033,1718461908728,-151.0,0.0002388,7]
[329586034,1718461908745,-151.0,0.0002388,7]
[329586035,1718461908756,-151.0,0.0002388,7]
[329586036,1718461908775,-802.821102,0.0002388,7]
[329586037,1718461908801,-802.821102,0.0002388,7]
[329586038,1718461908830,-151.0,0.0002388,7]
[329586039,1718461908844,-151.0,0.0002388,7]
[329586040,1718461908859,-159.349731,0.0002388,7]
[329586041,1718461908889,-270.747908,0.0002388,7]
[329586042,1718461908907,-270.747908,0.0002388,7]
[329586043,1718461908920,-2300.0,0.000239,8]
[329586044,1718461908933,-2565.89585704,0.0002393,2]
[329586045,1718461908946,-506.55200895,0.00023933,4]
[329586046,1718461908963,-251.0,0.00023933,4]
[329586047,1718461908980,-165.0,0.00023945,2]
[329586048,1718461909003,-442.0,0.00023945,2]
[329586049,1718461909015,-1831.21,0.00023999,3]
[329586050,1718461909027,-1831.21,0.00023999,3]
[329586051,1718461909040,-500.0,0.00023999,3]
[329586052,1718461909054,-500.0,0.00023999,3]
[329586053,1718461909067,-446302.24263426,0.00024,7]
[329586054,1718461909101,-178.0,0.00024,2]
[329586055,1718461909127,-310.0,0.00024,2]
[329586056,1718461909145,-448.3903566,0.00024,10]
[329586057,1718461909193,-900.0,0.00024,4]
[329586058,1718461909226,-10000.0,0.00024,2]
[329586059,1718461909237,-800.0,0.00024,4]
[329586060,1718461909247,-209.94653168,0.00024,2]
[329586061,1718461909259,-174.7296718,0.00024,2]
[329586062,1718461909291,-151.0,0.00024,7]
[329586063,1718461909311,-151.0,0.00024,7]
[329586064,1718461909326,-151.0,0.00024,7]
[329586065,1718461909355,-151.0,0.00024,7]
[329586066,1718461909367,-157.266076,0.00024,7]
[329586067,1718461909378,-151.0,0.00024,7]
[329586068,1718461909400,-151.0,0.00024,7]
[329586069,1718461909425,-151.0,0.00024,7]
[329586070,1718461909441,-151.0,0.00024,7]
[329586071,1718461909456,-151.0,0.00024,7]
[329586072,1718461909501,-151.0,0.00024,7]
[329586073,1718461909521,-151.0,0.00024,7]
[329586074,1718461909550,-151.0,0.00024,7]
[329586075,1718461909566,-151.0,0.00024,7]
[329586076,1718461909600,-151.0,0.00024,7]
[329586077,1718461909621,-802.821102,0.00024,7]
[329586078,1718461909652,-802.821102,0.00024,7]
[329586079,1718461909667,-296.615912,0.00024,7]
[329586080,1718461909682,-151.0,0.00024,7]
[329586081,1718461909703,-150.0,0.00024,4]
[329586082,1718461909740,-270.747908,0.00024,7]
[329586083,1718461909765,-270.747908,0.00024,7]
[329586084,1718461909794,-166.66666668,0.00024018,2]
[329586085,1718461909825,-150.0,0.00024029,2]
[329586086,1718461909837,-150.3327937,0.0002404,2]
[329586087,1718461909860,-655.86740822,0.00024053,2]
[329586088,1718461909894,-153.45584411,0.00024053,2]
[329586089,1718461909921,-151.51650188,0.00024056,2]
[329586090,1718461909957,-151.51650188,0.00024057,2]
[329586091,1718461910044,-151.51650188,0.00024062,2]
[329586092,1718461910058,-150.3327937,0.00024073,2]
[329586093,1718461910073,-375.769,0.00024075,2]
[329586094,1718461910086,-150.0,0.00024078,2]
[329586095,1718461910098,-197.13,0.0002408,15]
[329586096,1718461910113,-5000.0,0.00024083,2]
[329586097,1718461910138,-399.2037661,0.00024096,2]
[329586098,1718461910166,-500.0,0.00024099,3]
[329586099,1718461910182,-2059.15849944,0.000241,2]
[329586100,1718461910205,-500.0,0.000241,2]
[329586101,1718461910241,-500.0,0.000241,2]
[329586102,1718461910259,-500.0,0.000241,2]
[329586103,1718461910283,-500.0,0.000241,2]
[329586104,1718461910301,-500.0,0.000241,2]
[329586105,1718461910312,-500.0,0.000241,2]
[329586106,1718461910333,-500.0,0.000241,2]
[329586107,1718461910367,-500.0,0.000241,2]
[329586108,1718461910397,-500.0,0.000241,2]
[329586109,1718461910432,-500.0,0.000241,2]
[329586110,1718461910445,-500.0,0.000241,2]
[329586111,1718461910456,-500.0,0.000241,2]
[329586112,1718461910473,-500.0,0.000241,2]
[329586113,1718461910499,-500.0,0.000241,2]
[329586114,1718461910528,-500.0,0.000241,2]
[329586115,1718461910539,-500.0,0.000241,2]
[329586116,1718461910553,-500.0,0.000241,2]
[329586117,1718461910592,-500.0,0.000241,2]
[329586118,1718461910611,-500.0,0.000241,2]
[329586119,1718461910632,-500.0,0.000241,2]
[329586120,1718461910643,-500.0,0.000241,2]
[329586121,1718461910654,-500.0,0.000241,2]
[329586122,1718461910666,-500.0,0.000241,2]
[329586123,1718461910690,-500.0,0.000241,2]
[329586124,1718461910703,-500.0,0.000241,2]
[329586125,1718461910721,-500.0,0.000241,2]
[329586126,1718461910744,-500.0,0.000241,2]
[329586127,1718461910756,-500.0,0.000241,2]
[329586128,1718461910788,-500.0,0.000241,2]
[329586129,1718461910807,-500.0,0.000241,2]
[329586130,1718461910844,-500.0,0.000241,2]
[329586131,1718461910857,-500.0,0.000241,2]
[329586132,1718461910869,-500.0,0.000241,2]
[329586133,1718461910882,-500.0,0.000241,2]
[329586134,1718461910899,-500.0,0.000241,2]
[329586135,1718461910926,-500.0,0.000241,2]
[329586136,1718461910944,-500.0,0.000241,2]
[329586137,1718461910962,-500.0,0.000241,2]
[329586138,1718461910976,-500.0,0.000241,2]
[329586139,1718461910988,-500.0,0.000241,2]
[329586140,1718461911018,-500.0,0.000241,2]
[329586141,1718461911033,-500.0,0.000241,2]
[329586142,1718461911046,-500.0,0.000241,2]
[329586143,1718461911068,-500.0,0.000241,2]
[329586144,1718461911090,-500.0,0.000241,2]
[329586145,1718461911118,-500.0,0.000241,2]
[329586146,1718461911144,-500.0,0.000241,2]
[329586147,1718461911176,-500.0,0.000241,2]
[329586148,1718461911188,-500.0,0.000241,2]
[329586149,1718461911216,-500.0,0.000241,2]
[329586150,1718461911249,-500.0,0.000241,2]
[329586151,1718461911262,-500.0,0.000241,2]
[329586152,1718461911281,-500.0,0.000241,2]
[329586153,1718461911303,-500.0,0.000241,2]
[329586154,1718461911324,-500.0,0.000241,2]
[329586155,1718461911338,-500.0,0.000241,2]
[329586156,1718461911361,-500.0,0.000241,2]
[329586157,1718461911373,-500.0,0.000241,2]
[329586158,1718461911391,-500.0,0.000241,2]
[329586159,1718461911405,-500.0,0.000241,2]
[329586160,1718461911436,-500.0,0.000241,2]
[329586161,1718461911449,-500.0,0.000241,2]
[329586162,1718461911468,-500.0,0.000241,2]
[329586163,1718461911489,-500.0,0.000241,2]
[329586164,1718461911502,-500.0,0.000241,2]
[329586165,1718461911548,-500.0,0.000241,2]
[329586166,1718461911560,-500.0,0.000241,2]
[329586167,1718461911572,-500.0,0.000241,2]
[329586168,1718461911586,-500.0,0.000241,2]
[329586169,1718461911597,-500.0,0.000241,2]
[329586170,1718461911619,-500.0,0.000241,2]
[329586171,1718461911636,-500.0,0.000241,2]
[329586172,1718461911651,-500.0,0.000241,2]
[329586173,1718461911666,-500.0,0.000241,2]
[329586174,1718461911685,-500.0,0.000241,2]
[329586175,1718461911698,-500.0,0.000241,2]
[329586176,1718461911716,-500.0,0.000241,2]
[329586177,1718461911729,-500.0,0.000241,2]
[329586178,1718461911748,-500.0,0.000241,2]
[329586179,1718461911759,-500.0,0.000241,2]
[329586180,1718461911771,-500.0,0.000241,2]
[329586181,1718461911796,-500.0,0.000241,2]
[329586182,1718461911852,-500.0,0.000241,2]
[329586183,1718461911873,-500.0,0.000241,2]
[329586184,1718461911900,-500.0,0.000241,2]
[329586185,1718461911916,-500.0,0.000241,2]
[329586186,1718461911934,-500.0,0.000241,2]
[329586187,1718461911947,-500.0,0.000241,2]
[329586188,1718461911958,-500.0,0.000241,2]
[329586189,1718461911983,-500.0,0.000241,2]
[329586190,1718461912002,-500.0,0.000241,2]
[329586191,1718461912028,-500.0,0.000241,2]
[329586192,1718461912048,-500.0,0.000241,2]
[329586193,1718461912062,-500.0,0.000241,2]
[329586194,1718461912089,-500.0,0.000241,2]
[329586195,1718461912101,-500.0,0.000241,2]
[329586196,1718461912112,-500.0,0.000241,2]
[329586197,1718461912140,-500.0,0.000241,2]
[329586198,1718461912178,-500.0,0.000241,2]
[329586199,1718461912225,-500.0,0.000241,2]
[329586200,1718461912254,-500.0,0.000241,2]
[329586201,1718461912266,-500.0,0.000241,2]
[329586202,1718461912286,-500.0,0.000241,2]
[329586203,1718461912298,-500.0,0.000241,2]
[329586204,1718461912318,-500.0,0.000241,2]
[329586205,1718461912341,-500.0,0.000241,2]
[329586206,1718461912353,-500.0,0.000241,2]
[329586207,1718461912366,-500.0,0.000241,2]
[329586208,1718461912380,-500.0,0.000241,2]
[329586209,1718461912402,-500.0,0.000241,2]
[329586210,1718461912437,-500.0,0.000241,2]
[329586211,1718461912469,-500.0,0.000241,2]
[329586212,1718461912485,-500.0,0.000241,2]
[329586213,1718461912504,-500.0,0.000241,2]
[329586214,1718461912536,-500.0,0.000241,2]
[329586215,1718461912554,-500.0,0.000241,2]
[329586216,1718461912578,-500.0,0.000241,2]
[329586217,1718461912595,-500.0,0.000241,2]
[329586218,1718461912609,-500.0,0.000241,2]
[329586219,1718461912632,-500.0,0.000241,2]
[329586220,1718461912646,-500.0,0.000241,2]
[329586221,1718461912661,-500.0,0.000241,2]
[329586222,1718461912675,-500.0,0.000241,2]
[329586223,1718461912699,-500.0,0.000241,2]
[329586224,1718461912736,-500.0,0.000241,2]
[329586225,1718461912751,-500.0,0.000241,2]
[329586226,1718461912761,-500.0,0.000241,2]
[329586227,1718461912777,-500.0,0.000241,2]
[329586228,1718461912787,-500.0,0.000241,2]
[329586229,1718461912803,-500.0,0.000241,2]
[329586230,1718461912828,-500.0,0.000241,2]
[329586231,1718461912839,-500.0,0.000241,2]
[329586232,1718461912855,-500.0,0.000241,2]
[329586233,1718461912866,-500.0,0.000241,2]
[329586234,1718461912880,-500.0,0.000241,2]
[329586235,1718461912896,-500.0,0.000241,2]
[329586236,1718461912906,-500.0,0.000241,2]
[329586237,1718461912932,-500.0,0.000241,2]
[329586238,1718461912973,-488.0572599,0.00024109,3]
[329586239,1718461912988,-500.0,0.00024109,3]
[329586240,1718461913003,-500.0,0.00024109,3]
[329586241,1718461913017,-500.0,0.00024109,3]
[329586242,1718461913030,-500.0,0.00024109,3]
[329586243,1718461913041,-1119.66,0.00024109,3]
[329586244,1718461913058,-267.59918769,0.00024109,3]
[329586245,1718461913073,-500.0,0.00024109,3]
[329586246,1718461913094,-500.0,0.00024109,3]
[329586247,1718461913111,-500.0,0.00024109,3]
[329586248,1718461913133,-500.0,0.00024109,3]
[329586249,1718461913172,-500.0,0.00024109,3]
[329586250,1718461913212,-500.0,0.00024109,3]
[329586251,1718461913236,-500.0,0.00024109,3]
[329586252,1718461913248,-500.0,0.00024109,3]
[329586253,1718461913258,-150.0,0.00024109,3]
[329586254,1718461913274,-500.0,0.00024109,3]
[329586255,1718461913287,-500.0,0.00024109,3]
[329586256,1718461913310,-500.0,0.00024109,3]
[329586257,1718461913328,-500.0,0.00024109,3]
[329586258,1718461913343,-500.0,0.00024109,3]
[329586259,1718461913382,-500.0,0.00024109,3]
[329586260,1718461913406,-1012.22,0.00024109,3]
[329586261,1718461913422,-500.0,0.00024109,3]
[329586262,1718461913442,-500.0,0.00024109,3]
[329586263,1718461913459,-500.0,0.00024109,3]
[329586264,1718461913471,-500.0,0.00024109,3]
[329586265,1718461913487,-500.0,0.00024109,3]
[329586266,1718461913499,-500.0,0.00024109,3]
[329586267,1718461913511,-541.66,0.00024109,3]
[329586268,1718461913540,-2868.92,0.00024109,3]
[329586269,1718461913572,-616.2,0.00024109,3]
[329586270,1718461913596,-1292.03,0.00024109,3]
[329586271,1718461913637,-535.48,0.00024109,3]
[329586272,1718461913649,-606.09,0.00024109,3]
[329586273,1718461913661,-586.74,0.00024109,3]
[329586274,1718461913672,-2376.76,0.00024109,3]
[329586275,1718461913697,-500.0,0.00024109,3]
[329586276,1718461913710,-681.04,0.00024109,3]
[329586277,1718461913727,-2766.91,0.00024109,3]
[329586278,1718461913741,-500.0,0.00024109,3]
[329586279,1718461913757,-500.0,0.00024109,3]
[329586280,1718461913778,-500.0,0.00024109,3]
[329586281,1718461913815,-539.09,0.00024109,3]
[329586282,1718461913841,-789.55,0.00024109,3]
[329586283,1718461913876,-500.0,0.00024109,3]
[329586284,1718461913893,-500.0,0.00024109,3]
[329586285,1718461913925,-500.0,0.00024109,3]
[329586286,1718461913964,-500.0,0.00024109,3]
[329586287,1718461914004,-508.17,0.00024109,3]
[329586288,1718461914036,-655.86740822,0.0002411,2]
[329586289,1718461914051,-152.37404947,0.00024111,2]
[329586290,1718461914062,-152.37404947,0.0002412,2]
[329586291,1718461914101,-151.0,0.00024127,3]
[329586292,1718461914118,-568.76832441,0.00024144,2]
[329586293,1718461914137,-152.37404947,0.00024165,2]
[329586294,1718461914161,-151.51650188,0.00024166,2]
[329586295,1718461914214,-626.25475202,0.00024167,2]
[329586296,1718461914230,-150.0,0.0002417,2]
[329586297,1718461914308,-153.25370383,0.00024179,2]
[329586298,1718461914319,-655.86740822,0.00024179,2]
[329586299,1718461914396,-150.0,0.00024182,2]
[329586300,1718461914411,-153.45584411,0.00024185,2]
[329586301,1718461914432,-151.51650188,0.00024188,2]
[329586302,1718461914492,-360.86578888,0.00024192,2]
[329586303,1718461914528,-338.1538722,0.00024196,2]
[329586304,1718461914566,-342.56939574,0.00024199,2]
[329586305,1718461914581,-1361.92,0.000242,2]
[329586306,1718461914646,-150.3327937,0.00024203,2]
[329586307,1718461914712,-399.2037661,0.00024212,2]
[329586308,1718461914735,-180.0,0.0002423,2]
[329586309,1718461914747,-150.0,0.00024233,2]
[329586310,1718461914765,-152.3395995,0.00024234,2]
[329586311,1718461914785,-153.45584411,0.00024242,2]
[329586312,1718461914805,-166.24755231,0.00024255,2]
[329586313,1718461914830,-444.33,0.00024265,2]
[329586314,1718461914847,-338.1538722,0.0002427,2]
[329586315,1718461914860,-150.0,0.0002427,2]
[329586316,1718461914881,-338.1538722,0.00024274,2]
[329586317,1718461914895,-153.25370383,0.00024277,2]
[329586318,1718461914906,-210.0,0.0002429,2]
[329586319,1718461914918,-151.51650188,0.00024296,2]
[329586320,1718461914947,-150.3327937,0.00024298,2]
[329586321,1718461914968,-626.25475202,0.00024307,2]
[329586322,1718461915008,-150.0,0.00024332,2]
[329586323,1718461915024,-150.0,0.00024339,2]
[329586324,1718461915047,-626.25475202,0.00024344,2]
[329586325,1718461915071,-150.0,0.00024348,2]
[329586326,1718461915084,-360.86578888,0.00024356,2]
[329586327,1718461915116,-166.66666666,0.00024379,2]
[329586328,1718461915137,-500.0,0.00024383,3]
[329586329,1718461915150,-500.0,0.00024383,3]
[329586330,1718461915165,-500.0,0.00024383,3]
[329586331,1718461915197,-500.0,0.00024383,3]
[329586332,1718461915215,-1119.66,0.00024383,3]
[329586333,1718461915234,-500.0,0.00024383,3]
[329586334,1718461915254,-500.0,0.00024383,3]
[329586335,1718461915275,-500.0,0.00024383,3]
[329586336,1718461915294,-541.57060454,0.00024383,3]
[329586337,1718461915309,-500.0,0.00024383,3]
[329586338,1718461915334,-500.0,0.00024383,3]
[329586339,1718461915371,-500.0,0.00024383,3]
[329586340,1718461915410,-500.0,0.00024383,3]
[329586341,1718461915434,-150.0,0.00024383,3]
[329586342,1718461915466,-500.0,0.00024383,3]
[329586343,1718461915481,-500.0,0.00024383,3]
[329586344,1718461915512,-500.0,0.00024383,3]
[329586345,1718461915546,-500.0,0.00024383,3]
[329586346,1718461915573,-500.0,0.00024383,3]
[329586347,1718461915590,-500.0,0.00024383,3]
[329586348,1718461915603,-1012.22,0.00024383,3]
[329586349,1718461915615,-571.98,0.00024383,3]
[329586350,1718461915631,-500.0,0.00024383,3]
[329586351,1718461915648,-500.0,0.00024383,3]
[329586352,1718461915662,-162.22637245,0.00024383,3]
[329586353,1718461915686,-500.0,0.00024383,3]
[329586354,1718461915720,-500.0,0.00024383,3]
[329586355,1718461915796,-541.66,0.00024383,3]
[329586356,1718461915811,-616.2,0.00024383,3]
[329586357,1718461915827,-2868.92,0.00024383,3]
[329586358,1718461915843,-1292.03,0.00024383,3]
[329586359,1718461915856,-535.48,0.00024383,3]
[329586360,1718461915897,-606.09,0.00024383,3]
[329586361,1718461915925,-2376.76,0.00024383,3]
[329586362,1718461915949,-500.0,0.00024383,3]
[329586363,1718461915977,-681.04,0.00024383,3]
[329586364,1718461916002,-2766.91,0.00024383,3]
[329586365,1718461916034,-500.0,0.00024383,3]
[329586366,1718461916049,-500.0,0.00024383,3]
[329586367,1718461916063,-207.24,0.00024383,3]
[329586368,1718461916098,-789.55,0.00024383,3]
[329586369,1718461916126,-500.0,0.00024383,3]
[329586370,1718461916141,-500.0,0.00024383,3]
[329586371,1718461916162,-500.0,0.00024383,3]
[329586372,1718461916181,-500.0,0.00024383,3]
[329586373,1718461916196,-508.17,0.00024383,3]
[329586374,1718461916210,-153.27,0.00024384,2]
[329586375,1718461916222,-151.58,0.00024384,2]
[329586376,1718461916235,-524.56,0.00024384,2]
[329586377,1718461916258,-350.82,0.00024384,2]
[329586378,1718461916271,-160.17050623,0.00024389,2]
[329586379,1718461916287,-1099.1617377,0.0002439,2]
[329586380,1718461916305,-153.72328539,0.0002439,2]
[329586381,1718461916329,-338.1538722,0.00024394,2]
[329586382,1718461916341,-150.0,0.00024397,2]
[329586383,1718461916356,-360.86578888,0.00024403,2]
[329586384,1718461916374,-655.86740822,0.00024405,2]
[329586385,1718461916386,-166.66666666,0.00024409,2]
[329586386,1718461916404,-154.74146702,0.00024439,2]
[329586387,1718461916420,-10000.0,0.00024443,2]
[329586388,1718461916437,-163.06481895,0.00024449,2]
[329586389,1718461916449,-154.31730761,0.0002446,2]
[329586390,1718461916463,-338.1538722,0.00024464,2]
[329586391,1718461916478,-150.0,0.00024476,2]
[329586392,1718461916500,-150.0,0.00024484,2]
[329586393,1718461916512,-1489.251253,0.000245,3]
[329586394,1718461916533,-1000.0,0.000245,5]
[329586395,1718461916547,-4154.78,0.000245,2]
[329586396,1718461916561,-150.0,0.000245,4]
[329586397,1718461916575,-154.74146702,0.00024509,2]
[329586398,1718461916593,-153.72328539,0.0002451,2]
[329586399,1718461916614,-154.31730761,0.00024513,2]
[329586400,1718461916644,-360.86578888,0.00024521,2]
[329586401,1718461916668,-342.56939574,0.0002454,2]
[329586402,1718461916688,-338.1538722,0.00024542,2]
[329586403,1718461916704,-153.25370383,0.00024543,2]
[329586404,1718461916715,-399.2037661,0.00024559,2]
[329586405,1718461916731,-568.76832441,0.00024563,2]
[329586406,1718461916744,-153.7902579,0.00024565,2]
[329586407,1718461916786,-2000.0,0.0002457,2]
[329586408,1718461916798,-399.2037661,0.0002457,2]
[329586409,1718461916810,-568.76832441,0.00024571,2]
[329586410,1718461916821,-568.76832441,0.00024572,2]
[329586411,1718461916834,-153.45584411,0.00024587,2]
[329586412,1718461916846,-154.31730761,0.00024589,2]
[329586413,1718461916869,-338.1538722,0.00024597,2]
[329586414,1718461916881,-150.3327937,0.00024604,2]
[329586415,1718461916894,-360.86578888,0.00024611,2]
[329586416,1718461916928,-626.25475202,0.00024616,2]
[329586417,1718461916942,-171.2147291,0.00024622,2]
[329586418,1718461916984,-342.56939574,0.00024633,2]
[329586419,1718461916995,-155.78658821,0.00024639,2]
[329586420,1718461917011,-151.51650188,0.00024639,2]
[329586421,1718461917025,-154.74146702,0.00024641,2]
[329586422,1718461917046,-150.0,0.00024654,2]
[329586423,1718461917061,-500.0,0.00024657,3]
[329586424,1718461917075,-313.38999771,0.00024657,3]
[329586425,1718461917093,-500.0,0.00024657,3]
[329586426,1718461917117,-500.0,0.00024657,3]
[329586427,1718461917134,-1119.66,0.00024657,3]
[329586428,1718461917149,-500.0,0.00024657,3]
[329586429,1718461917186,-500.0,0.00024657,3]
[329586430,1718461917218,-500.0,0.00024657,3]
[329586431,1718461917275,-500.0,0.00024657,3]
[329586432,1718461917291,-335.87228618,0.00024657,3]
[329586433,1718461917310,-500.0,0.00024657,3]
[329586434,1718461917329,-500.0,0.00024657,3]
[329586435,1718461917359,-150.0,0.00024657,3]
[329586436,1718461917373,-500.0,0.00024657,3]
[329586437,1718461917405,-500.0,0.00024657,3]
[329586438,1718461917439,-500.0,0.00024657,3]
[329586439,1718461917459,-500.0,0.00024657,3]
[329586440,1718461917473,-500.0,0.00024657,3]
[329586441,1718461917489,-436.69817288,0.00024657,3]
[329586442,1718461917520,-1012.22,0.00024657,3]
[329586443,1718461917546,-500.0,0.00024657,3]
[329586444,1718461917562,-500.0,0.00024657,3]
[329586445,1718461917578,-500.0,0.00024657,3]
[329586446,1718461917595,-500.0,0.00024657,3]
[329586447,1718461917612,-541.66,0.00024657,3]
[329586448,1718461917625,-616.2,0.00024657,3]
[329586449,1718461917645,-2868.92,0.00024657,3]
[329586450,1718461917658,-1292.03,0.00024657,3]
[329586451,1718461917674,-535.48,0.00024657,3]
[329586452,1718461917880,-606.09,0.00024657,3]
[329586453,1718461917906,-2376.76,0.00024657,3]
[329586454,1718461917948,-500.0,0.00024657,3]
[329586455,1718461917963,-151.0,0.00024657,7]
[329586456,1718461917976,-681.04,0.00024657,3]
[329586457,1718461917994,-2766.91,0.00024657,3]
[329586458,1718461918028,-500.0,0.00024657,3]
[329586459,1718461918053,-500.0,0.00024657,3]
[329586460,1718461918070,-789.55,0.00024657,3]
[329586461,1718461918089,-500.0,0.00024657,3]
[329586462,1718461918123,-270.747908,0.00024657,7]
[329586463,1718461918135,-500.0,0.00024657,3]
[329586464,1718461918157,-270.747908,0.00024657,7]
[329586465,1718461918192,-500.0,0.00024657,3]
[329586466,1718461918209,-500.0,0.00024657,3]
[329586467,1718461918227,-508.17,0.00024657,3]
[329586468,1718461918252,-212.0,0.00024658,2]
[329586469,1718461918265,-152.720878,0.00024658,7]
[329586470,1718461918299,-360.86578888,0.00024672,2]
[329586471,1718461918314,-151.51650188,0.00024674,2]
[329586472,1718461918326,-360.86578888,0.00024675,2]
[329586473,1718461918337,-150.3327937,0.00024677,2]
[329586474,1718461918351,-154.31730761,0.00024678,2]
[329586475,1718461918368,-155.34437601,0.00024678,2]
[329586476,1718461918416,-360.86578888,0.00024685,2]
[329586477,1718461918429,-150.0,0.00024694,2]
[329586478,1718461918455,-150.0,0.00024698,2]
[329586479,1718461918470,-342.56939574,0.00024703,2]
[329586480,1718461918492,-151.0,0.00024704,7]
[329586481,1718461918505,-151.0,0.00024704,7]
[329586482,1718461918532,-151.0,0.00024704,7]
[329586483,1718461918587,-151.0,0.00024704,7]
[329586484,1718461918629,-1831.21,0.00024712,3]
[329586485,1718461918641,-5000.0,0.00024713,2]
[329586486,1718461918660,-151.0,0.00024713,7]
[329586487,1718461918674,-151.0,0.00024713,7]
[329586488,1718461918688,-239.425582,0.00024713,7]
[329586489,1718461918703,-151.0,0.00024713,7]
[329586490,1718461918714,-194.754031,0.00024713,7]
[329586491,1718461918746,-274.984919,0.00024713,7]
[329586492,1718461918761,-296.051744,0.00024713,7]
[329586493,1718461918778,-155.78658821,0.00024714,2]
[329586494,1718461918800,-166.66666666,0.00024716,2]
[329586495,1718461918817,-151.51650188,0.00024716,2]
[329586496,1718461918832,-150.0,0.00024741,2]
[329586497,1718461918846,-338.1538722,0.00024742,2]
[329586498,1718461918877,-151.51650188,0.00024746,2]
[329586499,1718461918897,-655.86740822,0.00024746,2]
[329586500,1718461918917,-153.45584411,0.00024747,2]
[329586501,1718461918936,-154.8732426,0.00024752,2]
[329586502,1718461918955,-150.0,0.00024754,2]
[329586503,1718461918971,-166.08083695,0.00024759,2]
[329586504,1718461919017,-150.0,0.00024759,2]
[329586505,1718461919037,-171.2147291,0.0002476,2]
[329586506,1718461919062,-152.3395995,0.00024763,2]
[329586507,1718461919089,-626.25475202,0.00024769,2]
[329586508,1718461919126,-655.86740822,0.0002477,2]
[329586509,1718461919157,-154.31730761,0.00024775,2]
[329586510,1718461919189,-500.0,0.00024797,3]
[329586511,1718461919203,-200.48,0.00024797,3]
[329586512,1718461919219,-151.0,0.00024798,7]
[329586513,1718461919255,-151.0,0.00024798,7]
[329586514,1718461919328,-151.0,0.00024798,7]
[329586515,1718461919347,-802.821102,0.00024798,7]
[329586516,1718461919363,-802.821102,0.00024798,7]
[329586517,1718461919419,-10090.67248592,0.00024798,2]
[329586518,1718461919450,-10090.67248591,0.00024798,2]
[329586519,1718461919493,-10090.67248591,0.00024798,2]
[329586520,1718461919517,-10090.67248591,0.00024798,2]
[329586521,1718461919540,-9596.04000843,0.00024798,2]
[329586522,1718461919712,-494.63247748,0.00024798,2]
[329586523,1718461919735,-10090.67248591,0.00024798,2]
[329586524,1718461919770,-10090.67248591,0.00024798,2]
[329586525,1718461919792,-10090.67248591,0.00024798,2]